bitfinex-derivatives/quotes_SOLF0:USTF0_20240924
["timestamp","ask_amount","ask_price","bid_price","bid_amount"]
[1727144540613,3.4598,144.53,144.5,3.4603]
[1727144540816,14.97,144.57,144.47,14.97]
[1727144541019,14.97,144.57,144.47,17.7101]
[1727144541719,14.97,144.57,144.52,3.4597]
[1727144543711,3.4589,144.56,144.52,3.4597]
[1727144544317,3.4589,144.56,144.53,3.4596]
[1727144545611,14.97,144.57,144.54,3.4593]
[1727144545816,4.86089633,144.6,144.51,14.97]
[1727144546214,3.47639633,144.6,144.52,1.4376]
[1727144546415,14.97,144.61,144.53,14.97]
[1727144546621,14.97,144.61,144.53,16.2851]
[1727144546922,3.4581,144.6,144.56,3.4587]
[1727144548426,3.4581,144.6,144.57,3.4585]
[1727144548925,3.4576,144.62,144.59,3.4581]
[1727144549423,14.97,144.66,144.55,14.97]
[1727144550519,3.4572,144.63,144.55,14.97]
[1727144550729,3.383391,144.63,144.53,6.22420168]
[1727144551026,3.4578,144.61,144.57,3.4585]
[1727144551231,3.43598615,144.61,144.57,3.4585]
[1727144551418,14.97,144.64,144.57,3.4585]
[1727144551622,18.34474048,144.64,144.57,3.4585]
[1727144552118,3.4581,144.6,144.56,3.4588]
[1727144552327,3.4581,144.6,144.53,17.7104]
[1727144552830,3.4581,144.6,144.56,3.4587]
[1727144553129,14.97,144.6,144.53,2.7404]
[1727144553434,14.97,144.58,144.52,1.4376]
[1727144554024,18.43217731,144.58,144.52,1.4376]
[1727144554629,3.4588,144.57,144.54,3.4594]
[1727144555932,14.97,144.62,144.52,1.4376]
[1727144556623,3.4583,144.59,144.55,3.4591]
[1727144557325,3.4583,144.59,144.56,3.4589]
[1727144558127,14.97,144.6,144.52,1.4376]
[1727144558935,14.97,144.62,144.53,16.3008]
[1727144559228,14.97,144.62,144.53,17.7449]
[1727144559424,14.97,144.62,144.53,21.1397158]
[1727144559425,3.4581,144.6,144.53,21.1397158]
[1727144560235,3.4581,144.6,144.53,17.7449]
[1727144560429,3.4583,144.59,144.56,3.4587]
[1727144561527,14.97,144.62,144.52,1.4376]
[1727144561831,14.97,144.6,144.52,1.4376]
[1727144562043,3.4585,144.58,144.56,3.4589]
[1727144562831,3.4583,144.59,144.56,3.4589]
[1727144563432,3.4585,144.58,144.55,3.4591]
[1727144563833,14.97,144.6,144.52,1.4376]
[1727144564030,14.97,144.58,144.52,4.8973]
[1727144564528,3.4592,144.55,144.52,4.8973]
[1727144564832,14.97,144.58,144.52,3.4597]
[1727144565839,3.4593,144.55,144.53,3.4596]
[1727144567136,3.4595,144.54,144.51,97.37458232]
[1727144567526,3.4592,144.55,144.52,3.4598]
[1727144567729,3.51551142,144.54,144.52,3.4598]
[1727144568639,3.4592,144.55,144.52,3.4598]
[1727144568837,3.459,144.56,144.53,3.4596]
[1727144569432,14.97,144.57,144.53,3.4596]
[1727144569433,3.4592,144.55,144.53,3.4596]
[1727144569625,6.97139,144.55,144.53,3.4596]
[1727144569825,3.4592,144.55,144.53,3.4596]
[1727144570331,6.96619702,144.55,144.53,3.4596]
[1727144571836,3.4592,144.55,144.53,3.4596]
[1727144572431,6.83671855,144.55,144.53,3.4596]
[1727144572639,16.2979,144.59,144.55,3.4591]
[1727144573440,3.4587,144.57,144.5,14.97]
[1727144574333,16.2979,144.59,144.49,2.7486]
[1727144574634,16.2979,144.59,144.52,3.4599]
[1727144575633,3.4591,144.56,144.53,3.4596]
[1727144575827,16.2979,144.59,144.49,2.7486]
[1727144576036,3.4588,144.57,144.52,3.4597]
[1727144576241,3.4588,144.57,144.5,14.97]
[1727144576832,3.4588,144.57,144.54,3.4592]
[1727144579039,3.4589,144.56,144.54,3.4592]
[1727144580341,3.4589,144.56,144.53,3.4595]
[1727144581342,3.48033785,144.55,144.49,2.7486]
[1727144581639,16.2979,144.59,144.49,2.7486]
[1727144581844,3.4592,144.55,144.52,3.4597]
[1727144583258,16.2979,144.59,144.49,2.7486]
[1727144583259,3.4589,144.57,144.49,2.7486]
[1727144583538,16.2979,144.59,144.5,14.97]
[1727144583846,16.2979,144.59,144.54,3.4592]
[1727144584043,3.4588,144.57,144.54,3.4592]
[1727144584644,3.4589,144.56,144.54,3.4592]
[1727144586342,3.4589,144.56,144.53,3.4595]
[1727144586537,3.4589,144.56,144.5,14.97]
[1727144587546,3.4589,144.56,144.53,3.4594]
[1727144588148,6.17199144,144.63,144.52,14.97]
[1727144588149,14.97,144.61,144.52,14.97]
[1727144588348,14.97,144.61,144.53,1.397]
[1727144588553,14.97,144.61,144.55,3.459]
[1727144588852,3.4586,144.58,144.55,3.459]
[1727144589451,3.4586,144.58,144.56,3.4589]
[1727144589852,227.42953727,144.73,144.56,14.97]
[1727144590157,14.97,144.67,144.56,14.97]
[1727144590346,3.4571,144.64,144.6,9.56]
[1727144590653,6.96385424,144.64,144.61,3.4577]
[1727144591255,3.4572,144.63,144.6,13.0179]
[1727144591459,3.4572,144.63,144.6,3.4579]
[1727144592359,18.45675424,144.64,144.57,1.442]
[1727144593751,3.4576,144.62,144.59,3.4581]
[1727144596361,3.4576,144.62,144.6,3.4579]
[1727144596756,14.95,144.66,144.62,3.4573]
[1727144596958,3.53875432,144.65,144.62,3.4573]
[1727144597357,3.4569,144.65,144.57,16.392]
[1727144597554,6.84189861,144.65,144.57,16.392]
[1727144598264,6.84189861,144.65,144.62,3.4573]
[1727144599259,3.4569,144.65,144.62,3.4573]
[1727144599460,6.87130631,144.65,144.62,3.4573]
[1727144599661,3.4569,144.65,144.62,3.4573]
[1727144600370,6.97025455,144.65,144.62,3.4573]
[1727144601068,3.51335455,144.65,144.61,3.4576]
[1727144601264,14.95,144.66,144.57,16.392]
[1727144602067,6.83359928,144.65,144.57,16.392]
[1727144602267,3.4568,144.65,144.57,16.392]
[1727144602869,3.50688908,144.64,144.62,3.4573]
[1727144603559,3.4568,144.65,144.62,3.4573]
[1727144604264,3.51494949,144.64,144.62,3.4573]
[1727144607365,3.4568,144.65,144.63,3.4571]
[1727144607961,6.88457085,144.65,144.63,3.4571]
[1727144608663,6.88457085,144.65,144.62,3.4573]
[1727144612363,16.44457085,144.65,144.62,3.4573]
[1727144612966,9.56,144.63,144.57,1.442]
[1727144613165,9.56,144.62,144.57,1.442]
[1727144613472,9.56,144.58,144.55,1.3374]
[1727144613674,13.08709822,144.58,144.53,9.56]
[1727144613967,13.0183,144.59,144.56,3.4589]
[1727144614567,13.04453636,144.59,144.52,2.7239]
[1727144614866,13.04453636,144.59,144.53,9.56]
[1727144615463,9.56,144.58,144.53,9.56]
[1727144616666,9.56,144.58,144.55,3.459]
[1727144616667,13.0185,144.58,144.55,3.459]
[1727144617963,9.56,144.58,144.54,3.4593]
[1727144618471,3.4588,144.57,144.54,3.4593]
[1727144618772,3.4588,144.57,144.55,3.4591]
[1727144619276,13.0185,144.58,144.55,3.4591]
[1727144620364,3.4587,144.57,144.55,3.4591]
[1727144620670,13.06938392,144.59,144.55,3.4591]
[1727144620865,3.4585,144.58,144.55,3.4591]
[1727144622861,1.3464,144.67,144.56,9.56]
[1727144623066,9.56,144.61,144.56,9.56]
[1727144623268,12.95008859,144.62,144.57,9.56]
[1727144623468,13.0177,144.62,144.59,3.458]
[1727144623969,16.46004496,144.62,144.59,3.458]
[1727144624168,9.56,144.61,144.54,1.3351]
[1727144624373,9.56,144.61,144.55,9.56]
[1727144624970,12.96704595,144.61,144.57,3.4586]
[1727144625163,1.3464,144.67,144.56,9.56]
[1727144625374,3.4572,144.64,144.61,3.4577]
[1727144625579,13.0172,144.64,144.61,3.4577]
[1727144626382,3.4573,144.63,144.6,3.4578]
[1727144627880,3.4571,144.64,144.61,3.4576]
[1727144629172,12.97937304,144.65,144.59,9.56]
[1727144629379,9.56,144.65,144.59,9.56]
[1727144629577,13.0169,144.65,144.61,3.4575]
[1727144630276,13.0169,144.65,144.6,3.4578]
[1727144630277,3.4572,144.64,144.6,3.4578]
[1727144632484,13.0172,144.63,144.6,3.4578]
[1727144634985,3.4571,144.64,144.61,3.4576]
[1727144635187,13.0171,144.64,144.61,3.4576]
[1727144637886,13.0168,144.65,144.62,3.4574]
[1727144638090,1.3465,144.72,144.63,9.56]
[1727144638279,9.56,144.69,144.64,9.56]
[1727144638484,9.56,144.69,144.54,4.84354407]
[1727144638485,13.0159,144.69,144.65,9.56]
[1727144638685,13.0159,144.69,144.54,4.84354407]
[1727144638686,9.56,144.68,144.56,6.9175]
[1727144638880,3.456,144.68,144.62,9.56]
[1727144639179,3.42953727,144.73,144.66,9.56]
[1727144639377,9.56,144.71,144.66,9.56]
[1727144639582,13.06661056,144.71,144.66,9.56]
[1727144640885,13.06661056,144.71,144.67,3.4561]
[1727144641289,9.56,144.71,144.67,3.4561]
[1727144641591,9.56,144.74,144.69,9.56]
[1727144641796,12.99051525,144.74,144.69,9.56]
[1727144641985,3.4549,144.73,144.69,13.0156]
[1727144643186,9.56,144.76,144.71,9.56]
[1727144643382,12.93562277,144.76,144.71,9.56]
[1727144643584,3.4546,144.75,144.71,13.0152]
[1727144644291,3.4546,144.74,144.71,13.0152]
[1727144646094,3.4544,144.75,144.72,3.455]
[1727144646285,9.56,144.78,144.73,9.56]
[1727144646591,3.454,144.77,144.73,9.56]
[1727144646792,3.454,144.77,144.73,13.0147]
[1727144647197,3.4541,144.76,144.73,13.0147]
[1727144648589,9.56,144.76,144.67,93.81494652]
[1727144648785,9.56,144.76,144.71,9.56]
[1727144649698,9.56,144.76,144.72,9.56]
[1727144649895,3.4544,144.75,144.72,13.015]
[1727144651598,9.56,144.77,144.72,9.56]
[1727144652093,3.4543,144.76,144.72,9.56]
[1727144652295,3.4543,144.76,144.72,13.0149]
[1727144652500,3.4543,144.76,144.72,9.56]
[1727144652882,3.4543,144.76,144.73,3.4548]
[1727144653290,3.4543,144.76,144.73,13.0148]
[1727144653596,3.4544,144.75,144.67,93.81494652]
[1727144653791,3.4544,144.75,144.72,9.56]
[1727144653992,2.7018,144.85,144.74,9.56]
[1727144654190,9.56,144.81,144.76,9.56]
[1727144654583,3.4539,144.78,144.76,9.56]
[1727144655797,3.4535,144.79,144.76,13.0141]
[1727144656191,3.4535,144.79,144.76,9.56]
[1727144657596,3.4535,144.79,144.76,13.0141]
[1727144657792,3.4528,144.82,144.77,9.56]
[1727144658000,9.56,144.83,144.78,9.56]
[1727144658396,3.4528,144.82,144.78,9.56]
[1727144659099,3.4528,144.82,144.78,13.0135]
[1727144659304,3.4531,144.81,144.78,3.4535]
[1727144660385,3.4531,144.81,144.78,13.0135]
[1727144660896,6.8994,144.95,144.8,9.56]
[1727144661096,1.3654,144.93,144.84,9.56]
[1727144661307,1.3654,144.93,144.85,9.56]
[1727144661603,9.56,144.92,144.81,1.3294]
[1727144661804,9.56,144.92,144.86,9.56]
[1727144662097,9.56,144.92,144.81,1.3294]
[1727144662295,9.56,144.92,144.86,9.56]
[1727144662691,9.56,144.92,144.87,9.56]
[1727144663402,9.56,144.92,144.88,3.4512]
[1727144664105,9.56,144.92,144.87,9.56]
[1727144665104,9.56,144.92,144.88,3.4511]
[1727144665404,10.8723,144.94,144.89,13.011]
[1727144666401,10.8723,144.94,144.85,3.52683928]
[1727144666402,3.52799616,144.95,144.9,9.56]
[1727144666706,9.56,144.96,144.91,9.56]
[1727144666898,13.02122045,144.96,144.91,9.56]
[1727144667300,3.4497,144.95,144.91,13.0104]
[1727144670708,3.4498,144.94,144.91,9.56]
[1727144670906,3.46122045,144.96,144.84,93.70512989]
[1727144671106,9.56,144.92,144.87,9.56]
[1727144671304,3.47386437,144.91,144.88,3.4512]
[1727144671511,13.0104,144.92,144.88,3.4512]
[1727144671902,16.5370975,144.92,144.88,3.4512]
[1727144672407,6.9770975,144.92,144.88,13.0112]
[1727144672708,3.4502,144.93,144.89,9.56]
[1727144673113,13.0155627,144.94,144.9,3.4506]
[1727144673303,13.0155627,144.94,144.89,9.56]
[1727144673709,13.0155627,144.94,144.89,13.0109]
[1727144673909,3.4502,144.93,144.89,13.0109]
[1727144674604,3.4502,144.93,144.84,93.70512989]
[1727144674605,9.56,144.93,144.84,93.70512989]
[1727144674806,3.4555627,144.94,144.89,9.56]
[1727144675015,2.7203,144.99,144.89,9.56]
[1727144675217,13.01,144.94,144.9,3.4508]
[1727144675515,3.45452675,144.96,144.93,9.56]
[1727144675713,3.4495,144.96,144.93,9.56]
[1727144676012,6.91852997,144.96,144.93,9.56]
[1727144676209,3.4495,144.96,144.93,9.56]
[1727144676411,3.4492,144.97,144.93,3.4499]
[1727144676812,6.87886411,144.97,144.93,3.4499]
[1727144677409,3.4492,144.97,144.93,3.4499]
[1727144680215,3.4495,144.96,144.93,3.4499]
[1727144680421,3.4495,144.96,144.92,3.4502]
[1727144680925,3.4495,144.96,144.93,3.45]
[1727144681519,1.3654,145.0,144.93,14.92]
[1727144681717,1.3877,145.02,144.93,14.92]
[1727144682116,3.4488,144.99,144.95,3.4494]
[1727144682827,3.449,144.98,144.95,3.4494]
[1727144683122,1.3877,145.02,144.93,14.92]
[1727144683325,3.4486,145.0,144.93,14.92]
[1727144684024,1.3877,145.02,144.91,2.6709]
[1727144684220,1.3877,145.02,144.93,14.92]
[1727144684426,3.4488,144.99,144.95,3.4494]
[1727144684925,1.3877,145.02,144.95,3.4494]
[1727144685124,3.449,144.98,144.95,3.4494]
[1727144685324,1.3877,145.02,144.94,3.4497]
[1727144685825,3.449,144.98,144.94,3.4497]
[1727144687729,3.4491,144.97,144.94,3.4497]
[1727144688924,14.92,145.01,144.91,2.6709]
[1727144689120,14.92,144.97,144.9,1.3275]
[1727144689430,18.39611728,144.97,144.9,4.7783]
[1727144689817,18.39611728,144.97,144.9,1.3275]
[1727144690420,18.39611728,144.97,144.9,19.6981]
[1727144690421,3.45,144.94,144.9,19.6981]
[1727144690629,3.45,144.94,144.9,16.2475]
[1727144691121,3.45,144.94,144.9,19.6982]
[1727144691924,3.47611728,144.97,144.9,1.3275]
[1727144692117,14.92,144.97,144.9,1.3275]
[1727144692323,18.43860802,144.97,144.9,1.3275]
[1727144692520,3.4504,144.92,144.88,14.92]
[1727144693834,3.4504,144.92,144.88,18.3711]
[1727144694930,3.4505,144.91,144.88,14.92]
[1727144697330,3.4505,144.91,144.88,18.3713]
[1727144698333,3.4505,144.91,144.89,9.55]
[1727144699233,3.4508,144.9,144.89,9.55]
[1727144699430,3.4508,144.9,144.87,3.4514]
[1727144699431,9.55,144.93,144.86,2.7391]
[1727144699629,9.55,144.9,144.85,9.55]
[1727144700444,3.452,144.85,144.84,93.70512989]
[1727144700627,3.452,144.85,144.81,2.7023]
[1727144700628,13.02413138,144.86,144.81,10.883]
[1727144700834,13.02413138,144.86,144.75,1.3031]
[1727144700835,9.55,144.85,144.75,2.6241]
[1727144701139,1.3441,144.88,144.75,4.0522]
[1727144701444,1.4053,144.89,144.84,9.55]
[1727144701631,3.4514,144.88,144.86,9.55]
[1727144702838,3.4505,144.92,144.87,9.55]
[1727144703043,10.9554,144.95,144.89,9.55]
[1727144703242,3.451,144.9,144.87,9.55]
[1727144704341,9.55,144.91,144.84,1.3822]
[1727144704535,1.4054,144.95,144.87,9.55]
[1727144704737,9.55,144.92,144.87,9.55]
[1727144705247,3.4504,144.92,144.89,9.55]
[1727144705456,9.55,144.94,144.89,9.55]
[1727144706450,10.9554,144.95,144.9,9.55]
[1727144707343,3.4501,144.93,144.9,9.55]
[1727144707760,1.3441,144.98,144.91,9.55]
[1727144708054,3.4497,144.95,144.91,13.0005]
[1727144708860,3.4497,144.95,144.92,3.4503]
[1727144709552,3.4497,144.95,144.92,13.0003]
[1727144710242,3.4492,144.97,144.92,9.55]
[1727144710742,3.4492,144.97,144.94,9.55]
[1727144711351,3.4489,144.98,144.94,9.55]
[1727144712049,9.55,144.99,144.94,9.55]
[1727144712659,12.9988,144.99,144.95,3.4495]
[1727144713350,3.48998268,145.05,144.97,3.4491]
[1727144713653,9.55,145.02,144.97,3.4491]
[1727144713858,3.4483,145.01,144.97,3.4491]
[1727144714053,3.4483,145.01,144.98,9.55]
[1727144714651,6.90853829,145.01,144.98,9.55]
[1727144714848,3.4483,145.01,144.98,9.55]
[1727144715449,6.95410408,145.01,144.98,9.55]
[1727144715644,3.4484,145.0,144.98,9.55]
[1727144716057,9.55,145.0,144.94,3.4496]
[1727144716354,9.55,145.0,144.95,9.55]
[1727144716550,3.4489,144.98,144.95,9.55]
[1727144716756,9.55,144.98,144.92,2.7774]
[1727144716959,9.55,144.95,144.87,1.391]
[1727144717150,9.55,144.95,144.9,9.55]
[1727144717454,3.4502,144.93,144.9,9.55]
[1727144717759,3.43836147,144.94,144.9,9.55]
[1727144717945,3.45,144.94,144.91,9.55]
[1727144718149,9.55,144.96,144.92,9.55]
[1727144718353,14.92,145.0,144.92,3.4503]
[1727144718754,14.92,145.0,144.9,14.92]
[1727144719058,3.4497,144.95,144.91,3.4504]
[1727144719263,3.40833362,144.95,144.88,97.78]
[1727144719565,14.92,144.98,144.88,97.78]
[1727144719858,14.92,144.98,144.88,14.92]
[1727144720254,3.4499,144.94,144.88,14.92]
[1727144720646,3.4499,144.94,144.9,3.4506]
[1727144722052,3.49858454,144.95,144.89,3.451]
[1727144722256,14.92,144.98,144.89,3.451]
[1727144722447,14.92,144.98,144.88,14.92]
[1727144722658,14.92,144.98,144.9,3.4507]
[1727144722859,14.92,144.98,144.88,14.92]
[1727144724155,14.92,144.98,144.89,3.4509]
[1727144724758,3.4502,144.93,144.89,3.4509]
[1727144725362,14.92,144.98,144.88,14.92]
[1727144726365,14.92,144.98,144.89,3.4509]
[1727144726657,14.92,144.98,144.88,14.92]
[1727144726955,3.4501,144.94,144.9,3.4508]
[1727144727156,6.83337,144.94,144.9,3.4508]
[1727144727551,3.4502,144.93,144.9,3.4508]
[1727144728163,3.38327,144.94,144.87,17.678]
[1727144728365,14.92,144.93,144.87,1.4422]
[1727144728556,14.92,144.93,144.85,14.92]
[1727144729065,3.4509,144.9,144.86,97.14239659]
[1727144729660,14.92,144.93,144.86,97.14239659]
[1727144729963,16.297,144.93,144.86,97.14239659]
[1727144730362,3.4512,144.89,144.86,97.14239659]
[1727144730762,2.7823,144.93,144.86,93.69079659]
[1727144730958,1.377,144.93,144.86,108.61079659]
[1727144731964,3.47407519,144.94,144.86,108.61079659]
[1727144732167,1.4104,144.98,144.92,14.92]
[1727144732667,3.4496,144.96,144.92,18.3702]
[1727144733061,3.4496,144.96,144.93,3.45]
[1727144734657,14.92,145.01,144.94,3.4497]
[1727144734863,2.7769,145.02,144.94,14.92]
[1727144735264,3.4485,145.0,144.96,3.4492]
[1727144735560,2.7769,145.02,144.94,14.92]
[1727144735758,3.449,144.98,144.94,14.92]
[1727144735963,2.7769,145.02,144.94,3.4498]
[1727144735964,14.92,145.01,144.94,3.4498]
[1727144736668,3.4491,144.98,144.94,3.4498]
[1727144736864,14.92,145.01,144.95,3.4495]
[1727144737165,2.7769,145.02,144.94,14.92]
[1727144737367,3.4487,144.99,144.95,3.4495]
[1727144737761,1.4104,145.02,144.94,14.92]
[1727144737962,1.4104,145.02,144.96,3.4492]
[1727144738376,6.8913,145.12,144.96,14.92]
[1727144738668,14.92,145.06,144.96,14.92]
[1727144738859,3.4481,145.02,144.98,3.4487]
[1727144740065,3.4481,145.02,144.99,3.4486]
[1727144740261,3.4478,145.03,144.96,14.92]
[1727144740467,3.4478,145.03,144.98,14.92]
[1727144740661,3.4478,145.03,144.99,3.4485]
[1727144740867,3.4479,145.02,144.96,14.92]
[1727144741061,14.92,145.02,144.92,3.963]
[1727144741262,14.92,145.0,144.92,2.66]
[1727144742368,14.92,145.0,144.92,6.1101]
[1727144743067,3.4492,144.97,144.93,3.4501]
[1727144743374,14.92,145.0,144.92,17.58]
[1727144743768,3.4491,144.97,144.93,3.45]
[1727144746073,18.38127295,144.98,144.9,14.92]
[1727144746265,14.92,144.98,144.88,14.92]
[1727144746664,3.45,144.94,144.88,14.92]
[1727144747168,3.45,144.94,144.91,3.4504]
[1727144747564,3.4495,144.96,144.9,14.92]
[1727144747769,18.30223111,144.98,144.91,3.4504]
[1727144748673,3.4497,144.95,144.91,3.4504]
[1727144749076,18.30223111,144.98,144.91,3.4504]
[1727144750173,3.4498,144.95,144.91,3.4504]
[1727144750973,2.719,145.03,144.93,14.92]
[1727144751173,2.719,145.03,144.94,2.7584]
[1727144751462,3.4486,145.0,144.97,3.4491]
[1727144751676,2.719,145.03,144.96,14.92]
[1727144751865,1.4101,145.03,144.96,14.92]
[1727144752469,1.3195,145.05,144.96,14.92]
[1727144752874,3.4478,145.03,144.99,3.4485]
[1727144753273,3.4478,145.03,144.96,14.92]
[1727144753580,64.82990766,145.06,144.98,14.92]
[1727144754069,64.82990766,145.06,144.99,3.4485]
[1727144754270,14.92,145.03,144.94,2.7584]
[1727144754975,3.4486,145.0,144.96,3.4492]
[1727144755866,3.4486,145.0,144.97,3.4491]
[1727144756270,3.4479,145.03,144.97,14.92]
[1727144757778,3.4479,145.03,145.0,3.4484]
[1727144758382,4.91068403,145.06,144.95,14.92]
[1727144758383,14.92,145.05,144.95,14.92]
[1727144758981,3.4481,145.02,144.98,3.4487]
[1727144759369,3.4481,145.02,144.99,3.4486]
[1727144760180,3.4481,145.02,144.94,2.7584]
[1727144760181,14.92,145.02,144.94,2.7584]
[1727144760680,3.4483,145.01,144.94,2.7584]
[1727144761583,3.4484,145.0,144.95,14.92]
[1727144761770,14.92,145.05,144.98,3.4488]
[1727144762775,14.92,145.05,144.95,14.92]
[1727144762776,14.92,145.05,144.97,3.449]
[1727144763582,14.92,145.03,144.96,3.4493]
[1727144763777,14.92,145.0,144.89,97.76]
[1727144763982,14.92,145.0,144.9,1.3818]
[1727144764183,14.92,144.98,144.92,3.4501]
[1727144764375,14.92,144.98,144.9,1.3818]
[1727144764376,18.30726851,144.98,144.9,1.3818]
[1727144764572,3.4497,144.95,144.91,3.4504]
[1727144764883,3.4497,144.95,144.9,1.3818]
[1727144765077,3.4497,144.95,144.92,3.4502]
[1727144766181,3.4494,144.96,144.9,1.3818]
[1727144766378,14.92,144.98,144.9,1.3818]
[1727144766676,1.4221,145.0,144.9,1.3818]
[1727144766677,3.43113355,144.97,144.91,14.92]
[1727144766883,16.3421,145.0,144.93,3.4499]
[1727144767478,3.4492,144.97,144.93,3.4499]
[1727144768185,3.4492,144.97,144.94,3.4498]
[1727144768482,1.4221,145.0,144.93,14.92]
[1727144768987,16.292,145.02,144.93,14.92]
[1727144769284,16.292,145.02,144.96,3.4491]
[1727144770086,3.4488,144.99,144.95,3.4495]
[1727144770386,14.92,145.01,144.91,14.92]
[1727144770584,3.4491,144.98,144.91,14.92]
[1727144771197,14.92,145.01,144.91,14.92]
[1727144771378,16.292,145.02,144.93,14.92]
[1727144771684,3.4488,144.99,144.93,14.92]
[1727144771987,3.53490167,144.98,144.9,1.3818]
[1727144772283,3.4495,144.96,144.92,3.4501]
[1727144772480,3.4495,144.96,144.9,1.3818]
[1727144772982,3.4495,144.96,144.93,3.45]
[1727144773387,3.4492,144.97,144.91,14.92]
[1727144773574,3.4492,144.97,144.94,3.4496]
[1727144773781,3.4494,144.96,144.91,14.92]
[1727144774285,3.4494,144.96,144.93,3.4499]
[1727144776584,14.92,145.01,144.95,3.4495]
[1727144778586,3.4488,144.99,144.95,3.4495]
[1727144778883,14.92,145.01,144.91,14.92]
[1727144779184,3.4485,145.0,144.93,14.92]
[1727144779389,17.633,145.05,144.95,14.92]
[1727144779590,17.633,145.05,144.98,3.4487]
[1727144779790,3.4481,145.02,144.98,3.4487]
[1727144780691,3.4481,145.02,144.99,3.4485]
[1727144781792,3.49178403,145.06,144.97,14.92]
[1727144782088,14.92,145.08,144.97,16.3408]
[1727144782285,3.4474,145.05,145.01,3.448]
[1727144782685,3.4474,145.05,144.99,14.92]
[1727144783388,3.4474,145.05,145.01,3.4479]
[1727144784588,3.4468,145.07,144.99,14.92]
[1727144784795,1.3921,145.11,145.03,14.92]
[1727144785182,3.43741243,145.12,145.03,14.92]
[1727144785183,3.4461,145.1,145.03,14.92]
[1727144785380,3.4461,145.1,145.03,18.34292023]
[1727144785989,3.4461,145.1,145.05,3.4471]
[1727144786190,3.49952187,145.11,145.03,14.92]
[1727144786390,14.92,145.13,145.03,14.92]
[1727144786883,18.3670739,145.13,145.04,3.43844759]
[1727144787279,3.4459,145.11,145.06,3.4468]
[1727144787784,3.4459,145.11,145.05,14.92]
[1727144788293,3.4461,145.1,145.06,3.4468]
[1727144788991,3.4463,145.09,145.06,3.4468]
[1727144789586,3.4463,145.09,145.05,14.92]
[1727144789587,18.3670739,145.13,145.05,14.92]
[1727144791490,3.4470739,145.13,145.05,14.92]
[1727144791692,2.6389,145.16,145.03,4.92908327]
[1727144791693,1.3203,145.16,145.08,14.92]
[1727144791885,3.4455,145.13,145.09,3.4461]
[1727144792290,14.92,145.17,145.08,14.92]
[1727144793392,3.4455,145.13,145.09,3.4462]
[1727144793587,14.92,145.17,145.09,3.4462]
[1727144794601,3.4456,145.12,145.08,18.3664]
[1727144796698,3.46459026,145.13,145.07,3.4467]
[1727144796992,14.92,145.15,145.07,3.4467]
[1727144797399,3.4459,145.11,145.07,3.4467]
[1727144798100,3.446,145.1,145.07,3.4467]
[1727144799398,3.4463,145.09,145.06,18.3669]
[1727144799701,3.45331678,145.13,145.06,14.92]
[1727144800004,14.92,145.15,145.06,14.92]